bitfinex-derivatives/quotes_BTCF0:USTF0_20240815
["timestamp","ask_amount","ask_price","bid_price","bid_amount"]
[1723721283356,0.12750103,58661.0,58660.0,1.73800367]
[1723721283551,0.02761995,58661.0,58660.0,1.73800367]
[1723721283854,0.0002549,58671.0,58660.0,1.73800367]
[1723721283855,0.10110431,58666.0,58664.0,0.085218]
[1723721284053,0.10109301,58669.0,58668.0,0.085213]
[1723721284254,0.10109597,58669.0,58668.0,0.465526]
[1723721284458,0.10109597,58672.0,58671.0,0.085208]
[1723721284649,0.10109597,58672.0,58671.0,0.170416]
[1723721284845,0.10109597,58673.0,58672.0,0.255621]
[1723721285049,0.0982695,58675.0,58672.0,0.446007]
[1723721285253,0.00078604,58682.0,58681.0,0.170388]
[1723721285548,0.19742555,58682.0,58681.0,0.085194]
[1723721285749,0.11223355,58682.0,58681.0,0.085194]
[1723721286149,0.02840093,58682.0,58681.0,0.170388]
[1723721286755,0.00078604,58682.0,58681.0,0.170388]
[1723721286957,0.00078604,58682.0,58681.0,0.085194]
[1723721287155,0.08484252,58682.0,58681.0,0.170388]
[1723721287353,0.00078604,58682.0,58681.0,0.218288]
[1723721287856,0.00078604,58682.0,58681.0,1.156776]
[1723721288062,4e-08,58682.0,58681.0,1.116682]
[1723721288559,4e-08,58682.0,58681.0,1.117682]
[1723721288760,4e-08,58682.0,58681.0,1.032488]
[1723721288970,4e-08,58682.0,58681.0,1.046488]
[1723721289259,4e-08,58682.0,58681.0,1.216876]
[1723721289476,0.3608,58721.0,58712.0,0.8596]
[1723721289760,0.08405648,58745.0,58729.0,0.085123]
[1723721289761,0.00088,58731.0,58729.0,0.085123]
[1723721289964,0.3608,58734.0,58718.0,0.3608]
[1723721290264,0.3608,58735.0,58718.0,0.3608]
[1723721290454,0.085116,58735.0,58731.0,0.085121]
[1723721290666,0.085116,58735.0,58724.0,0.3608]
[1723721290963,0.3608,58743.0,58731.0,0.3608]
[1723721291152,0.445904,58743.0,58731.0,0.3608]
[1723721291462,0.085105,58742.0,58731.0,0.3608]
[1723721291659,0.3608,58743.0,58731.0,0.3608]
[1723721291860,0.085115,58735.0,58733.0,0.085118]
[1723721292062,0.085111,58738.0,58731.0,0.3608]
[1723721292256,0.3608,58744.0,58734.0,0.085115]
[1723721292257,0.085113,58737.0,58734.0,0.085115]
[1723721292457,0.3608,58744.0,58736.0,0.3608]
[1723721292855,0.085112,58737.0,58736.0,0.3608]
[1723721293058,0.085105,58742.0,58736.0,0.3608]
[1723721293251,0.0487,58746.0,58736.0,0.3608]
[1723721293449,0.085106,58742.0,58738.0,0.085111]
[1723721293655,0.0487,58746.0,58740.0,0.085107]
[1723721293859,0.3608,58742.0,58736.0,0.3608]
[1723721294055,0.0487,58746.0,58739.0,0.085109]
[1723721294255,0.0487,58746.0,58736.0,0.3608]
[1723721294457,0.0487,58746.0,58736.0,0.3618]
[1723721294660,0.3608,58748.0,58736.0,0.3618]
[1723721294959,0.3608,58748.0,58741.0,0.3681]
[1723721295365,0.3608,58754.0,58741.0,0.7289]
[1723721295555,0.085101,58745.0,58742.0,0.085104]
[1723721295854,0.445898,58748.0,58741.0,0.3608]
[1723721296165,0.085091,58752.0,58741.0,0.7289]
[1723721296352,0.3608,58754.0,58747.0,0.7289]
[1723721296865,0.3608,58754.0,58753.0,0.085089]
[1723721297161,0.0462,58766.0,58747.0,0.7289]
[1723721297162,0.085075,58763.0,58758.0,0.085082]
[1723721297363,0.085075,58763.0,58741.0,0.3608]
[1723721297364,0.085079,58760.0,58759.0,0.3608]
[1723721297563,0.085096,58749.0,58746.0,0.453199]
[1723721297757,0.085099,58746.0,58745.0,0.00025542]
[1723721298468,0.170198,58746.0,58745.0,0.00025542]
[1723721298965,0.085099,58746.0,58745.0,0.00025542]
[1723721299153,0.3608,58754.0,58745.0,0.91093542]
[1723721299358,0.3608,58768.0,58749.0,0.7216]
[1723721299664,0.3608,58768.0,58747.0,0.3681]
[1723721299665,0.3608,58768.0,58767.0,0.453169]
[1723721300176,0.3608,58768.0,58767.0,1.363649]
[1723721300357,0.3608,58782.0,58767.0,1.63938]
[1723721300559,0.3608,58787.0,58782.0,0.085047]
[1723721300968,0.085042,58786.0,58775.0,0.7289]
[1723721301269,0.3608,58787.0,58782.0,0.085047]
[1723721301467,0.3608,58787.0,58782.0,0.170094]
[1723721301768,0.41,58797.0,58782.0,0.995407]
[1723721301769,0.3608,58797.0,58782.0,0.995407]
[1723721301964,0.085028,58796.0,58782.0,0.995407]
[1723721302171,0.3608,58797.0,58782.0,0.995407]
[1723721302368,0.085028,58796.0,58782.0,0.995407]
[1723721302574,0.3608,58797.0,58782.0,1.080454]
[1723721302862,0.3608,58797.0,58782.0,0.995407]
[1723721303067,0.085028,58795.0,58782.0,1.080454]
[1723721303459,0.3608,58792.0,58782.0,0.085047]
[1723721303670,0.085043,58785.0,58782.0,0.995407]
[1723721303868,0.085033,58792.0,58782.0,0.086047]
[1723721304171,0.085038,58789.0,58782.0,0.087047]
[1723721304471,0.3608,58794.0,58782.0,0.087047]
[1723721304866,0.3608,58794.0,58782.0,1.167501]
[1723721305167,0.085027,58797.0,58782.0,0.997407]
[1723721305366,0.3608,58793.0,58782.0,0.997407]
[1723721305567,0.085045,58784.0,58782.0,0.087047]
[1723721305868,0.3608,58792.0,58782.0,0.087047]
[1723721306068,0.3608,58792.0,58782.0,0.002]
[1723721306371,0.085042,58786.0,58782.0,0.087048]
[1723721306576,0.445833,58792.0,58782.0,0.087048]
[1723721306764,0.085086,58783.0,58782.0,0.002]
[1723721306965,0.085086,58783.0,58777.0,0.00025517]
[1723721306966,0.085053,58778.0,58777.0,0.00025517]
[1723721307165,0.530906,58778.0,58777.0,0.00025517]
[1723721307366,0.615959,58778.0,58777.0,1e-08]
[1723721307559,1.621412,58778.0,58777.0,1e-08]
[1723721307766,1.621412,58778.0,58759.0,0.3608]
[1723721307767,0.085079,58761.0,58759.0,0.3608]
[1723721308068,0.3618,58778.0,58760.0,0.3681]
[1723721308270,0.3618,58778.0,58759.0,0.3608]
[1723721308271,0.085065,58771.0,58769.0,0.3608]
[1723721308472,0.3608,58778.0,58769.0,0.3608]
[1723721308659,0.3608,58785.0,58777.0,0.3681]
[1723721309166,0.3608,58785.0,58784.0,0.453145]
[1723721309369,0.3608,58795.0,58784.0,0.7289]
[1723721309668,0.00025352,58787.0,58784.0,0.7289]
[1723721309864,0.00025352,58787.0,58786.0,0.085042]
[1723721310060,0.00025352,58787.0,58784.0,0.7289]
[1723721310061,0.00025352,58787.0,58784.0,0.36184]
[1723721310262,0.3608,58795.0,58786.0,0.085042]
[1723721310464,0.3608,58795.0,58794.0,0.53086]
[1723721310465,0.001,58795.0,58794.0,0.53086]
[1723721310670,0.085013,58806.0,58805.0,0.085014]
[1723721310865,0.085011,58808.0,58807.0,0.085011]
[1723721311059,0.3608,58810.0,58800.0,0.3608]
[1723721311060,0.085012,58807.0,58800.0,0.3608]
[1723721311259,0.3608,58810.0,58809.0,0.085008]
[1723721311464,0.3608,58810.0,58800.0,0.3608]
[1723721311769,0.3608,58810.0,58809.0,0.085008]
[1723721312072,0.3608,58810.0,58800.0,0.3608]
[1723721312266,0.3608,58810.0,58809.0,0.085008]
[1723721312463,0.3608,58816.0,58805.0,0.7289]
[1723721312666,0.3608,58816.0,58815.0,0.085]
[1723721312862,0.3608,58822.0,58815.0,0.085]
[1723721313069,0.3608,58822.0,58812.0,0.3608]
[1723721313376,0.3608,58828.0,58818.0,0.3681]
[1723721314271,0.3608,58828.0,58820.0,0.084992]
[1723721314468,0.445781,58828.0,58821.0,0.084991]
[1723721314669,0.3608,58822.0,58815.0,0.084999]
[1723721314866,0.3608,58822.0,58812.0,0.3608]
[1723721314867,0.3608,58821.0,58818.0,0.001]
[1723721315174,0.3608,58828.0,58818.0,0.001]
[1723721315373,0.3608,58828.0,58819.0,0.3681]
[1723721315571,0.3608,58845.0,58826.0,0.3681]
[1723721315864,0.3608,58845.0,58839.0,0.084964]
[1723721316062,0.084965,58839.0,58838.0,0.3608]
[1723721316268,0.3608,58845.0,58828.0,0.3608]
[1723721316572,0.084968,58837.0,58836.0,0.00025495]
[1723721317965,0.084968,58837.0,58826.0,0.3681]
[1723721317966,0.10051578,58837.0,58826.0,0.3681]
[1723721318173,0.10051578,58837.0,58821.0,0.3608]
[1723721318174,0.06672419,58828.0,58821.0,0.3608]
[1723721318362,0.06672419,58822.0,58818.0,0.084995]
[1723721318567,0.084996,58818.0,58812.0,0.453104]
[1723721318763,0.084997,58817.0,58812.0,0.3681]
[1723721318975,0.08340524,58820.0,58812.0,0.3681]
[1723721318976,0.08340524,58822.0,58812.0,0.3681]
[1723721319168,0.06678091,58821.0,58812.0,0.3681]
[1723721319371,0.06678091,58820.0,58814.0,0.3608]
[1723721319568,0.06678091,58818.0,58817.0,0.084997]
[1723721320166,0.0852442,58822.0,58818.0,0.084995]
[1723721320372,0.16864944,58822.0,58818.0,0.084995]
[1723721320569,0.16864944,58822.0,58812.0,0.3681]
[1723721320570,0.084996,58818.0,58812.0,0.3681]
[1723721320770,0.08340524,58821.0,58819.0,0.084993]
[1723721320968,0.08365944,58822.0,58816.0,0.36076828]
[1723721321278,0.06687882,58819.0,58816.0,0.36076828]
[1723721321481,0.08340524,58819.0,58818.0,0.084995]
[1723721321675,0.08340524,58821.0,58820.0,0.084993]
[1723721321869,0.16839624,58821.0,58820.0,0.084993]
[1723721322065,0.084993,58820.0,58816.0,0.36076828]
[1723721322270,0.0002542,58822.0,58816.0,0.36076828]
[1723721322271,0.06689757,58818.0,58816.0,0.44576528]
[1723721322565,0.08340524,58818.0,58816.0,0.36076828]
[1723721322769,0.085004,58812.0,58811.0,0.36105495]
[1723721322980,0.170008,58812.0,58811.0,0.36105495]
[1723721323167,0.085013,58806.0,58805.0,0.3608]
[1723721323573,0.1125704,58806.0,58805.0,0.3608]
[1723721323870,0.0275574,58806.0,58805.0,0.445814]
[1723721324177,0.0275574,58806.0,58794.0,0.50706627]
[1723721324372,0.085027,58797.0,58794.0,0.50598627]
[1723721324680,0.16877446,58795.0,58794.0,0.14518627]
[1723721324871,0.11259075,58795.0,58794.0,0.14518627]
[1723721325075,0.085029,58795.0,58794.0,0.14518627]
[1723721325276,0.3608,58798.0,58790.0,0.00025495]
[1723721325578,0.085035,58791.0,58790.0,0.00025495]
[1723721326077,0.3608,58792.0,58790.0,0.00025495]
[1723721326277,0.00092,58797.0,58790.0,0.00025495]
[1723721326471,0.3608,58798.0,58790.0,0.00025495]
[1723721326675,0.08503,58794.0,58792.0,0.085033]
[1723721326877,0.445825,58798.0,58790.0,0.00025495]
[1723721327073,0.3608,58798.0,58790.0,0.00025495]
[1723721327270,0.085035,58791.0,58790.0,0.00025495]
[1723721327574,0.17007,58791.0,58790.0,0.00025495]
[1723721327773,1.08035,58791.0,58790.0,0.00025495]
[1723721328197,0.17009,58784.0,58783.0,0.00017816]
[1723721328682,0.17009,58784.0,58772.0,0.085062]
[1723721328683,0.085055,58777.0,58772.0,0.085062]
[1723721328869,0.085055,58777.0,58770.0,0.3608]
[1723721328870,0.3608,58777.0,58770.0,0.3608]
[1723721329073,0.445856,58777.0,58774.0,0.085059]
[1723721329377,0.085062,58773.0,58771.0,0.085023]
[1723721329578,0.00012133,58772.0,58770.0,0.3608]
[1723721330074,0.00012133,58772.0,58771.0,0.453163]
[1723721330380,0.00025516,58779.0,58771.0,0.453163]
[1723721330381,0.00025516,58779.0,58778.0,0.538206]
[1723721330573,0.3608,58797.0,58779.0,0.085052]
[1723721330775,0.3608,58797.0,58788.0,0.3608]
[1723721331186,5.683e-05,58796.0,58792.0,0.085032]
[1723721331478,5.683e-05,58796.0,58784.0,0.3681]
[1723721331682,5.683e-05,58796.0,58783.0,0.3608]
[1723721331683,0.085045,58784.0,58783.0,0.3608]
[1723721332178,5.683e-05,58796.0,58783.0,0.3608]
[1723721332369,0.085034,58792.0,58783.0,0.3608]
[1723721332575,5.683e-05,58796.0,58789.0,0.085036]
[1723721332880,0.085038,58789.0,58787.0,0.08504]
[1723721333185,0.085039,58788.0,58787.0,0.08504]
[1723721333680,0.08503,58795.0,58783.0,0.3708]
[1723721333885,5.683e-05,58796.0,58795.0,0.085029]
[1723721334584,0.51029683,58796.0,58783.0,0.3708]
[1723721334774,0.17009,58784.0,58783.0,0.3708]
[1723721334970,0.17014683,58784.0,58783.0,0.3708]
[1723721335175,0.08505,58781.0,58778.0,0.00025516]
[1723721335486,0.085052,58779.0,58778.0,0.00025516]
[1723721335880,0.210104,58779.0,58778.0,0.00025516]
[1723721336075,0.085052,58779.0,58778.0,0.00025516]
[1723721336276,0.3608,58780.0,58778.0,0.00025516]
[1723721336482,5.683e-05,58784.0,58778.0,0.00025516]
[1723721336782,0.3608,58780.0,58778.0,0.00625516]
[1723721336972,0.085052,58779.0,58778.0,0.00625516]
[1723721337175,0.085052,58779.0,58778.0,0.09130816]
[1723721337375,0.3608,58780.0,58778.0,0.00625516]
[1723721337575,0.3608,58780.0,58779.0,0.085052]
[1723721337985,5.683e-05,58784.0,58779.0,0.085052]
[1723721338178,0.00025516,58785.0,58784.0,0.085045]
[1723721338379,0.00025516,58785.0,58784.0,0.445845]
[1723721338577,0.08529816,58785.0,58784.0,0.445845]
[1723721339088,0.08505,58780.0,58779.0,0.01]
[1723721339381,0.3608,58784.0,58779.0,0.01]
[1723721339585,0.085047,58783.0,58782.0,0.085046]
[1723721340088,0.085051,58780.0,58779.0,0.085052]
[1723721340582,0.085052,58779.0,58778.0,0.00025516]
[1723721340885,0.170104,58779.0,58778.0,0.00025516]
[1723721341875,0.170104,58779.0,58758.0,0.085081]
[1723721341876,0.08507,58767.0,58758.0,0.085081]
[1723721342183,0.085071,58766.0,58765.0,0.085071]
[1723721342783,0.085071,58766.0,58761.0,0.085077]
[1723721342784,0.085077,58762.0,58761.0,0.085077]
[1723721343086,0.00025516,58767.0,58759.0,0.3681]
[1723721343292,0.00025516,58767.0,58766.0,0.085071]
[1723721343587,0.085059,58775.0,58774.0,0.085057]
[1723721343781,0.085065,58771.0,58770.0,0.085063]
[1723721344185,0.3608,58777.0,58766.0,0.3618]
[1723721344385,0.085069,58767.0,58766.0,0.085071]
[1723721344786,0.085068,58769.0,58768.0,0.085066]
[1723721344985,0.085066,58770.0,58769.0,0.085065]
[1723721345382,0.085069,58767.0,58766.0,0.08532516]
[1723721345592,0.085065,58770.0,58769.0,0.085065]
[1723721345786,0.085069,58767.0,58766.0,0.08532516]
[1723721346092,0.085069,58767.0,58766.0,0.00025516]
[1723721347090,0.170138,58767.0,58766.0,0.00025516]
[1723721347386,0.170138,58767.0,58766.0,0.00925516]
[1723721347777,0.680618,58767.0,58766.0,0.00925516]
[1723721347989,0.595549,58767.0,58766.0,0.00925516]
[1723721348194,0.680618,58767.0,58766.0,0.00925516]
[1723721348685,0.995549,58767.0,58766.0,0.00925516]
[1723721348888,1.080618,58767.0,58766.0,0.00925516]
[1723721349291,1.090618,58767.0,58766.0,0.00525516]
[1723721350386,0.085084,58757.0,58756.0,0.445884]
[1723721351188,0.3608,58765.0,58752.0,0.08509]
[1723721351189,0.08509,58753.0,58752.0,0.08509]
[1723721351388,0.085094,58750.0,58749.0,0.085094]
[1723721352987,0.085097,58748.0,58747.0,0.00025516]
[1723721353192,0.680874,58748.0,58747.0,0.00025516]
[1723721353387,0.170194,58748.0,58747.0,0.00025516]
[1723721353583,0.680874,58748.0,58747.0,0.00025516]
[1723721353984,0.595777,58748.0,58747.0,0.00025516]
[1723721354190,0.001,58750.0,58749.0,0.085095]
[1723721354593,0.3608,58761.0,58749.0,1.356535]
[1723721354901,0.06707502,58773.0,58772.0,0.085062]
[1723721355081,0.3608,58788.0,58772.0,0.7289]
[1723721355694,0.085049,58781.0,58773.0,0.08506]
[1723721355888,0.08504,58787.0,58782.0,0.085046]
[1723721356100,0.3608,58788.0,58779.0,0.085051]
[1723721356395,0.085057,58776.0,58774.0,0.00025516]
[1723721356586,0.170116,58775.0,58774.0,0.00025516]
[1723721356985,0.3608,58783.0,58782.0,0.085048]
[1723721357389,0.00025516,58786.0,58774.0,0.00025516]
[1723721357588,0.085044,58785.0,58774.0,0.00025516]
[1723721357788,0.00025516,58786.0,58775.0,0.085057]
[1723721357789,0.3608,58780.0,58775.0,0.085057]
[1723721357989,0.085058,58775.0,58774.0,0.00025516]
[1723721358208,0.170116,58775.0,58774.0,0.00025516]
[1723721358387,0.680556,58775.0,58774.0,0.00025516]
[1723721358589,1.441356,58775.0,58774.0,0.00025516]
[1723721358786,0.085067,58769.0,58762.0,0.05068803]
[1723721358993,0.3608,58766.0,58761.0,3.856117]
[1723721359192,0.3608,58766.0,58765.0,0.170144]
[1723721359393,0.08506,58774.0,58772.0,0.085062]
[1723721359693,0.085061,58773.0,58772.0,0.085062]
[1723721360397,0.3608,58775.0,58767.0,0.00025516]
[1723721360398,0.3608,58775.0,58774.0,0.085059]
[1723721360894,0.085065,58771.0,58770.0,0.085064]
[1723721361101,0.3608,58775.0,58774.0,0.085059]
[1723721361688,0.445858,58775.0,58774.0,0.085059]
[1723721361898,0.530916,58775.0,58774.0,0.008]
[1723721362088,1.526414,58775.0,58774.0,0.008]
[1723721362398,0.170136,58768.0,58767.0,0.00025516]
[1723721362601,0.616004,58768.0,58767.0,0.00025516]
[1723721362793,1.526484,58768.0,58767.0,0.00025516]
[1723721364098,0.08509,58753.0,58752.0,0.05068803]
[1723721364295,0.08509,58753.0,58752.0,0.085091]
[1723721365401,0.08609,58753.0,58752.0,0.092091]
[1723721365709,0.001,58753.0,58752.0,0.092091]
[1723721365899,0.085089,58754.0,58753.0,0.085088]
[1723721366602,0.3608,58757.0,58752.0,0.006]
[1723721366793,0.085087,58756.0,58755.0,0.085086]
[1723721367190,0.085089,58753.0,58752.0,0.09109]
[1723721367999,0.085089,58753.0,58752.0,0.08509]
[1723721368591,0.085086,58756.0,58749.0,0.3608]
[1723721368592,0.085094,58750.0,58749.0,0.3608]
[1723721368994,0.001,58753.0,58749.0,0.3608]
[1723721369310,0.08509,58753.0,58752.0,0.090091]
[1723721369502,0.085085,58756.0,58755.0,0.085087]
[1723721369704,0.08533716,58758.0,58757.0,0.085084]
[1723721370004,0.00025516,58758.0,58757.0,0.085084]
[1723721370309,0.00025516,58758.0,58755.0,0.5134684]
[1723721370515,0.08533716,58758.0,58757.0,0.05081247]
[1723721370702,0.00025516,58758.0,58757.0,0.13589647]
[1723721371011,0.00025516,58758.0,58757.0,0.085084]
[1723721371507,0.085084,58757.0,58756.0,0.0675824]
[1723721371697,0.085085,58756.0,58755.0,0.085086]
[1723721371902,0.085085,58756.0,58755.0,0.3608]
[1723721372305,0.17017,58756.0,58755.0,0.3608]
[1723721372507,0.085085,58756.0,58755.0,0.3608]
[1723721372708,0.085085,58756.0,58755.0,0.445887]
[1723721372915,0.001,58756.0,58755.0,0.454887]
[1723721373227,0.3608,58768.0,58767.0,0.085069]
[1723721373407,0.085069,58768.0,58767.0,0.085067]
[1723721373613,0.0457,58772.0,58764.0,0.0508258]
[1723721373614,0.085072,58765.0,58764.0,0.0508258]
[1723721373807,0.085068,58768.0,58764.0,0.0508252]
[1723721374010,0.0457,58772.0,58764.0,0.1358975]
[1723721374011,0.085072,58765.0,58764.0,0.1358975]
[1723721374216,0.085069,58768.0,58767.0,0.085068]
[1723721374407,0.085069,58767.0,58764.0,0.1358985]
[1723721374614,0.085069,58767.0,58766.0,0.4116255]
[1723721375213,0.00025516,58770.0,58769.0,0.085066]
[1723721375415,0.00025516,58770.0,58766.0,0.3608]
[1723721375416,0.085068,58768.0,58767.0,0.085069]
[1723721375621,0.085068,58768.0,58767.0,0.13589403]
[1723721375818,0.085069,58767.0,58766.0,0.002]
[1723721376117,0.170138,58767.0,58766.0,0.05282503]
[1723721376311,1.526487,58767.0,58766.0,0.002]
[1723721376505,1.526487,58767.0,58750.0,0.445894]
[1723721376506,0.255237,58760.0,58759.0,0.05109471]
[1723721376916,0.616037,58760.0,58759.0,0.00025516]
[1723721377615,1.536597,58760.0,58759.0,0.00025516]
[1723721378011,0.085085,58756.0,58751.0,0.05083955]
[1723721378212,0.085095,58750.0,58749.0,0.085094]
[1723721378813,0.3608,58754.0,58746.0,0.06794337]
[1723721379013,0.05082973,58774.0,58766.0,0.085071]
[1723721379219,0.3608,58775.0,58766.0,0.3608]
[1723721379418,0.3608,58775.0,58774.0,0.085059]
[1723721380217,0.3608,58775.0,58769.0,0.05081592]
[1723721380418,0.085061,58773.0,58772.0,0.085061]
[1723721380738,0.3608,58775.0,58774.0,0.085059]
[1723721381427,0.00025516,58776.0,58775.0,0.085058]
[1723721381812,0.006,58767.0,58766.0,0.001]
[1723721382022,0.006,58767.0,58766.0,0.171142]
[1723721382229,0.006,58767.0,58766.0,0.531942]
[1723721382620,0.00025516,58776.0,58775.0,0.085058]
[1723721383116,0.08531116,58776.0,58775.0,0.085058]
[1723721383424,0.08531116,58776.0,58775.0,0.05080067]
[1723721383613,0.085058,58775.0,58774.0,0.13585967]
[1723721383816,0.085058,58775.0,58774.0,0.085059]
[1723721384013,0.085058,58775.0,58774.0,0.13585902]
[1723721384220,0.085058,58775.0,58774.0,0.085059]
[1723721386126,0.085058,58775.0,58767.0,0.06773427]
[1723721386127,0.91044,58775.0,58767.0,0.06773427]
[1723721386327,0.085068,58768.0,58767.0,0.05082234]
[1723721386525,0.085071,58766.0,58765.0,0.00025516]
[1723721386719,0.530942,58766.0,58765.0,0.00025516]
[1723721386920,0.616013,58766.0,58765.0,0.00025516]
[1723721387423,0.530942,58766.0,58765.0,0.00025516]
[1723721388240,1.526533,58766.0,58765.0,0.00025516]
[1723721388528,0.170142,58766.0,58765.0,0.01225516]
[1723721388921,0.085071,58766.0,58765.0,0.09732716]
[1723721389121,0.085068,58769.0,58768.0,0.085067]
[1723721389427,0.085068,58769.0,58765.0,0.00025516]
[1723721389428,0.085064,58771.0,58770.0,0.085064]
[1723721389616,0.085064,58771.0,58770.0,0.13591079]
[1723721390020,0.085061,58773.0,58772.0,0.085062]
[1723721390330,0.085059,58775.0,58774.0,0.085058]
[1723721391223,0.08531216,58776.0,58775.0,0.085058]
[1723721391428,0.00025516,58776.0,58775.0,0.085058]
[1723721391725,0.08531116,58776.0,58775.0,0.085058]
[1723721394525,0.08531116,58776.0,58775.0,0.13590479]
[1723721394821,0.00025516,58776.0,58775.0,0.085058]
[1723721395035,0.08531116,58776.0,58775.0,0.085058]
[1723721395433,0.085061,58774.0,58773.0,0.08506]
[1723721396442,0.08531116,58776.0,58775.0,0.085058]
[1723721396624,0.08531116,58776.0,58775.0,0.255174]
[1723721396625,0.00025516,58776.0,58775.0,0.255174]
[1723721397029,0.085058,58775.0,58774.0,0.085059]
[1723721397830,0.00025516,58776.0,58775.0,0.170116]
[1723721398131,0.00025516,58776.0,58775.0,0.085058]
[1723721398826,0.08531116,58776.0,58775.0,0.085058]
[1723721399229,0.08531116,58776.0,58772.0,0.42853427]
[1723721399230,0.17012,58773.0,58772.0,0.06773427]
[1723721399430,0.085062,58772.0,58770.0,0.06773427]
[1723721399634,0.170124,58772.0,58771.0,0.06773427]
[1723721399839,0.255213,58766.0,58765.0,0.00025516]
[1723721400041,0.636013,58766.0,58765.0,0.05113451]
[1723721400236,0.085084,58757.0,58756.0,0.06783765]
[1723721400541,0.085089,58753.0,58752.0,0.05088636]
[1723721400740,0.255273,58752.0,58751.0,0.06783765]
[1723721401041,0.255273,58752.0,58749.0,0.05088636]
[1723721401042,0.170188,58750.0,58749.0,0.05088636]
[1723721401340,0.085095,58749.0,58748.0,0.05088636]
[1723721401538,0.3608,58753.0,58747.0,0.085098]
[1723721401837,0.05088323,58759.0,58753.0,0.08509]
[1723721402037,0.06707502,58764.0,58753.0,0.08509]
[1723721402038,0.085074,58764.0,58757.0,0.085084]
[1723721402230,0.085078,58761.0,58760.0,0.085079]
[1723721402428,0.004,58766.0,58759.0,0.06783765]
[1723721402741,0.0508632,58776.0,58765.0,0.3608]
[1723721402931,0.06707502,58779.0,58778.0,0.085053]
[1723721403134,0.085046,58784.0,58781.0,0.085048]
[1723721403334,0.085048,58782.0,58781.0,0.05083641]
[1723721403644,0.085049,58781.0,58780.0,0.05083641]
[1723721403832,0.085049,58781.0,58778.0,0.05083641]
[1723721404035,0.08505,58780.0,58776.0,0.05109157]
[1723721404242,0.17011,58777.0,58776.0,0.00025516]
[1723721404740,0.255165,58777.0,58776.0,0.00025516]
[1723721404939,1.526365,58777.0,58776.0,0.00025516]
[1723721405241,1.6393,58777.0,58772.0,0.05083641]
[1723721405446,0.17013,58770.0,58769.0,0.05083641]
[1723721405738,0.08506,58774.0,58769.0,0.05084238]
[1723721405942,0.08506,58774.0,58766.0,0.06779936]
[1723721405943,0.08506,58774.0,58770.0,0.05084238]
[1723721406141,0.085063,58772.0,58770.0,0.05084238]
[1723721406343,0.085063,58772.0,58771.0,0.085063]
[1723721406540,0.085936,58776.0,58772.0,0.085061]
[1723721406541,0.085056,58776.0,58772.0,0.085061]
[1723721406744,0.085062,58772.0,58771.0,0.05084771]
[1723721406940,0.085936,58776.0,58774.0,0.085059]
[1723721407149,0.085058,58775.0,58774.0,0.085059]
[1723721407940,0.00625516,58777.0,58776.0,0.085056]
[1723721408243,0.09131016,58777.0,58776.0,0.05086007]
[1723721408443,0.91665516,58777.0,58775.0,0.05089188]
[1723721408642,0.3608,58776.0,58770.0,0.11869124]
[1723721408842,0.3608,58776.0,58765.0,0.00025516]
[1723721408843,0.05089476,58772.0,58766.0,0.41169188]
[1723721409040,0.57823346,58775.0,58766.0,0.41169188]
[1723721409041,0.05089476,58771.0,58766.0,0.41169188]
[1723721409246,0.05089476,58773.0,58767.0,0.05089188]
[1723721409546,0.035068,58768.0,58766.0,0.49676188]
[1723721409745,0.05089476,58773.0,58766.0,0.49676188]
[1723721409746,0.085069,58767.0,58766.0,0.49676188]
[1723721409947,0.085071,58766.0,58765.0,0.00025516]
[1723721410148,0.170142,58766.0,58765.0,0.00025516]
[1723721410645,0.22103676,58766.0,58765.0,0.00025516]
[1723721410850,0.170142,58766.0,58765.0,0.00025516]
[1723721411041,0.05089476,58772.0,58765.0,0.00025516]
[1723721411348,0.05089476,58774.0,58770.0,0.05088741]
[1723721411547,0.05089476,58775.0,58768.0,0.085068]
[1723721411744,0.05089476,58775.0,58765.0,0.00425516]
[1723721411745,0.00025516,58777.0,58770.0,0.3608]
[1723721411946,0.00025516,58777.0,58775.0,0.58180447]
[1723721412143,0.36184001,58784.0,58775.0,0.7289]
[1723721412339,0.001,58778.0,58777.0,0.085055]
[1723721412644,0.085042,58787.0,58777.0,0.08478454]
[1723721412845,0.085043,58785.0,58784.0,0.05087054]
[1723721413050,0.3608,58785.0,58782.0,0.05087306]
[1723721413251,0.170096,58782.0,58780.0,0.05087306]
[1723721413552,0.08505,58780.0,58779.0,0.05112822]
[1723721413847,0.08505,58780.0,58779.0,0.00025516]
[1723721414242,0.08505,58780.0,58779.0,0.08530716]
[1723721414447,0.08505,58780.0,58779.0,0.00025516]
[1723721414648,0.3608,58787.0,58782.0,0.085048]
[1723721415052,0.87112,58787.0,58782.0,0.085048]
[1723721415350,0.3608,58787.0,58780.0,0.05086542]
[1723721415553,0.3608,58787.0,58779.0,0.08530616]
[1723721415554,0.41169476,58788.0,58782.0,0.05086192]
[1723721415748,0.085045,58784.0,58783.0,0.13590792]
[1723721415947,0.085046,58783.0,58781.0,0.085048]
[1723721416147,0.445839,58788.0,58782.0,0.085047]
[1723721416348,0.3608,58788.0,58784.0,0.085044]
[1723721416547,0.3608,58788.0,58784.0,0.05085665]
[1723721416744,0.3608,58788.0,58780.0,0.06782739]
[1723721416745,0.001,58787.0,58782.0,0.001]
[1723721416941,0.530892,58783.0,58782.0,0.001]
[1723721417144,0.08505,58780.0,58779.0,0.00025516]
[1723721417346,0.05177476,58787.0,58779.0,0.00025516]
[1723721417547,0.085046,58784.0,58783.0,0.085046]
[1723721417746,0.3618,58788.0,58782.0,0.05085728]
[1723721417945,0.00088,58788.0,58787.0,0.08504]
[1723721418351,0.085035,58791.0,58789.0,0.085037]
[1723721418554,0.085035,58791.0,58789.0,0.13588088]
[1723721418859,0.085035,58791.0,58786.0,0.11742739]
[1723721418860,0.3608,58795.0,58788.0,0.3608]
[1723721419052,0.3608,58795.0,58794.0,0.08503]
[1723721419053,0.085029,58795.0,58794.0,0.08503]